Cogmind - Beta 14 @@@ ROGUE MODE // 2025.01.17 @ 10:16:38 Player: Willow Result: Self-destructed Performance ------------- Evolutions (2) 1000 Regions Visited (6) 1200 Robots Destroyed (54) 270 Value Destroyed (1301) 1301 Prototype IDs (25) 500 Alien Tech Used (0) 0 Bonus (274) 274 TOTAL SCORE: 4545 Bonus ------- High Alert Combat Kills 44 Aligned with FarCom 300 Friendly Fire -70 Cogmind --------- Core Integrity 550/550 Matter 300/300 Energy 280/280 System Corruption 0% Temperature Cool (0) Movement Treading (160) Location -8/Materials Parts ------- > --- POWER (1) -------- Cooled Ion Engine > --- PROPULSION (3) --- Light Treads Light Treads Light Treads > --- UTILITY (5) ------ Improved Heat Sink Large Storage Unit Improved Signal Interpreter Hardened Medium Armor Plating Hacking Suite > --- WEAPON (2) ------- Heavy Assault Rifle Mini Grenade Launcher > --- INVENTORY (15) --- Cooled Ion Engine Reinforced Deuterium Engine Light Treads Armored Treads Armored Treads Carbon-fiber Leg Improved Heat Sink Large Storage Unit Medium Matter Pod (100) Advanced Visual Processing Unit YOLO Cannon Light Assault Rifle Grenade Launcher Datajack Peak State ------------ > --- POWER ------------ Cooled Ion Engine > --- PROPULSION ------- Light Treads Light Treads Light Treads > --- UTILITY ---------- Improved Heat Sink Large Storage Unit Improved Signal Interpreter Hardened Medium Armor Plating Hacking Suite > --- WEAPON ----------- YOLO Cannon > --- INVENTORY -------- Cooled Ion Engine Light Treads Light Treads Carbon-fiber Leg Improved Heat Sink Large Storage Unit Medium Matter Pod Advanced Visual Processing Unit Light Assault Rifle Heavy Assault Rifle Grenade Launcher Mini Grenade Launcher Datajack [Rating: 41] Favorites ----------- Power Cooled Ion Engine Engine Cooled Ion Engine Propulsion Light Treads Treads Light Treads Utility Large Storage Unit Device Seismic Detector Storage Large Storage Unit Processor Improved Signal Interpreter Hackware Hacking Suite Protection Light Armor Plating Weapon Assault Rifle Energy Cannon YOLO Cannon Ballistic Gun Assault Rifle Launcher Mini Grenade Launcher Build | -11 -10 -9 -9 -9 -8 -8 ------- Run | Yrd Mat Mat Min Exi Min Mat Slots Evolved 4 | . . 2 . . . 2 Power . | . . . . . . . Propulsion 1 | . . . . . . 1 Utility 3 | . . 2 . . . 1 Weapon . | . . . . . . . Parts Attached 47 | 6 15 11 4 3 1 7 Power 4 | 1 1 1 1 . . . Engine 4 | 1 1 1 1 . . . Core . | . . . . . . . Reactor . | . . . . . . . Propulsion 13 | 2 6 3 . . . 2 Treads 13 | 2 6 3 . . . 2 Leg . | . . . . . . . Wheel . | . . . . . . . Hover . | . . . . . . . Flight . | . . . . . . . Utility 13 | 1 2 3 1 3 1 2 Device 5 | . 1 1 1 1 . 1 Storage 3 | 1 1 . . 1 . . Processor 1 | . . . . . 1 . Hackware 1 | . . 1 . . . . Protection 3 | . . 1 . 1 . 1 Artifact . | . . . . . . . Weapon 17 | 2 6 4 2 . . 3 Energy Gun . | . . . . . . . Energy Cannon 1 | . . . . . . 1 Ballistic Gun 14 | 2 5 4 2 . . 1 Ballistic Cannon . | . . . . . . . Launcher 2 | . 1 . . . . 1 Special Weapon . | . . . . . . . Impact Weapon . | . . . . . . . Slashing Weapon . | . . . . . . . Piercing Weapon . | . . . . . . . Special Melee Weapon . | . . . . . . . Unidentified Prototypes 2 | . . 2 . . . . Parts Lost 13 | . . 8 4 . . 1 Power 1 | . . . 1 . . . Propulsion 3 | . . 3 . . . . Utility 3 | . . 1 1 . . 1 Weapon 6 | . . 4 2 . . . Highest Loss Streak 2 | . . 2 2 . . 1 To Critical Strikes . | . . . . . . . Average Slot Usage (%) 96 | . 95 98 95 100 93 98 Engine 11 | . 14 11 8 11 11 9 Treads 24 | . 27 21 22 22 22 27 Device 12 | . 10 21 10 11 . 7 Storage 11 | . 14 11 11 11 11 9 Hackware 7 | . . 11 11 11 11 9 Protection 4 | . . . 11 10 11 9 Ballistic Gun 23 | . 26 21 20 22 22 13 Peak Build Rating 41 | 6 8 17 16 22 19 41 Average Rating 13 | 4 7 15 14 16 17 25 On Entrance 11 | . 6 8 16 15 17 19 Naked Turns . | . . . . . . . Heaviest Build 55 | 14 30 38 38 36 36 55 Greatest Support 60 | 40 40 40 40 40 40 60 Greatest Overweight (x) 4 | 4 1 1 . . . . Average Overweight (x) . | . . . . . . . Largest Inventory Capacity 15 | 8 15 15 15 15 15 15 Average Capacity 14 | 7 13 15 15 15 15 15 Most Carried 15 | 2 12 15 10 13 13 15 Average Carried 9 | 1 8 11 8 10 12 13 Final Capacity 15 | 8 15 15 15 15 15 15 Final Carried 15 | 2 12 10 9 12 12 15 Class Distribution -------------------- 54% | Scavenger-Mutant 45% | Mutant Dominant Class ---------------- Mutant | -10/Materials Scavenger-Mutant | -9/Materials Scavenger-Mutant | -9/Mines Scavenger-Mutant | -9/Exiles Scavenger-Mutant | -8/Mines Scavenger-Mutant | -8/Materials Resources | -11 -10 -9 -9 -9 -8 -8 ----------- Run | Yrd Mat Mat Min Exi Min Mat Matter Collected 1655 | 216 626 522 147 . 44 100 Remotely . | . . . . . . . Salvage Created 1939 | . 688 870 143 . 28 210 Parts 116 | . 30 54 21 . 3 8 Haulers Intercepted 3 | . 1 2 . . . . Recyclers Shooed 2 | . . 1 1 . . . Parts Field Recycled . | . . . . . . . Retrieved Matter . | . . . . . . . Parts Self-Destructed . | . . . . . . . Prevented . | . . . . . . . Kills | -11 -10 -9 -9 -9 -8 -8 ------- Run | Yrd Mat Mat Min Exi Min Mat Combat Hostiles Destroyed 40 | . 12 16 9 . . 3 Guns 37 | . 11 16 9 . . 1 Cannons 1 | . . . . . . 1 AOE 2 | . 1 . . . . 1 Classes Destroyed 12 | . 6 4 . . . 2 Worker 5 | . 2 2 . . 1 . Builder 2 | . . 2 . . . . Tunneler 1 | . 1 . . . . . Hauler 3 | . 1 2 . . . . Recycler 2 | . 1 . . . . 1 Operator 1 | . 1 . . . . . Swarmer 12 | . . 3 9 . . . Grunt 19 | . 12 7 . . . . Brawler 1 | . . 1 . . . . Sentry 5 | . . 5 . . . . Specialist 2 | . . . . . . 2 Heavy 1 | . . . . . . 1 Best Kill Streak 4 | . 3 4 4 . 1 4 Combat Bots Only 4 | . 2 3 4 . . 3 Max Kills in Single Turn 3 | . 3 2 2 . 1 1 Gunslinging 1 | . . . 1 . . . Exploded 1 | . 1 . . . . 1 Melee . | . . . . . . . Uniques/NPCs Destroyed . | . . . . . . . Combat | -11 -10 -9 -9 -9 -8 -8 -------- Run | Yrd Mat Mat Min Exi Min Mat Hostile Shots Fired 260 | . 63 122 59 . . 16 Missed 83 | . 24 37 17 . . 5 Damage Taken 2188 | . 626 1050 321 . . 191 Core 373 | . 166 186 21 . . . Absorbed by Shields . | . . . . . . . Core Remaining (%) 60 | 100 33 . . . 48 . Volleys Fired 162 | . 63 69 23 . 1 6 Largest 2 | . 2 2 2 . 2 2 Hottest 100 | . 40 46 46 . 43 100 Shots Fired 309 | . 124 136 39 . 2 8 Gun 304 | . 122 136 39 . 2 5 Cannon 1 | . . . . . . 1 Launcher 4 | . 2 . . . . 2 Special . | . . . . . . . Kinetic 304 | . 122 136 39 . 2 5 Thermal 1 | . . . . . . 1 Explosive 4 | . 2 . . . . 2 Electromagnetic . | . . . . . . . Robot Hit Streak 13 | . 13 11 5 . 1 3 Robot Miss Streak 5 | . 3 3 5 . 1 2 Penetration Max . | . . . . . . . Secondary Targets 6 | . . 4 2 . . . Max Gunslinging Chain 1 | . . 1 1 . . . Shots Hit Robots 210 | . 89 97 19 . 1 4 Core Hits 85 | . 33 36 10 . 1 5 Critical Kills 2 | . 1 1 . . . . Critical Parts Destroyed . | . . . . . . . Critical Strikes 2 | . 1 1 . . . . Destroy 2 | . 1 1 . . . . Melee Attacks . | . . . . . . . Impact . | . . . . . . . Slashing . | . . . . . . . Piercing . | . . . . . . . Sneak Attacks . | . . . . . . . Combat Hostiles . | . . . . . . . Follow-up Attacks . | . . . . . . . Damage Inflicted 3466 | . 1346 1415 372 . 18 315 Guns 2979 | . 1129 1415 372 . 18 45 Cannons 116 | . . . . . . 116 Explosions 371 | . 217 . . . . 154 Melee . | . . . . . . . Ramming . | . . . . . . . Kinetic 2979 | . 1129 1415 372 . 18 45 Thermal 269 | . 153 . . . . 116 Explosive 218 | . 64 . . . . 154 Electromagnetic . | . . . . . . . Impact . | . . . . . . . Slashing . | . . . . . . . Piercing . | . . . . . . . Highest Corruption . | . . . . . . . Average Corruption . | . . . . . . . Corruption Purged . | . . . . . . . Corruption Blocked . | . . . . . . . Overload Shots . | . . . . . . . Overflow Damage . | . . . . . . . Projectiles . | . . . . . . . Explosions . | . . . . . . . Melee . | . . . . . . . Knockbacks . | . . . . . . . Impact . | . . . . . . . Kinetic . | . . . . . . . Secondary . | . . . . . . . Self-Inflicted Damage 147 | . 147 . . . . . Shots 3 | . 3 . . . . . Rammed 1 | . . 1 . . . . Targets Rammed 1 | . . 1 . . . . Kicked . | . . . . . . . Crushed . | . . . . . . . Highest Temperature 20 | . 20 7 . . . . Average Temperature 5 | . 4 6 . . . . Received Heat Transfer 723 | . 291 432 . . . . Siege Activations . | . . . . . . . Robots Corrupted . | . . . . . . . Combat Hostiles . | . . . . . . . Parts Fried . | . . . . . . . Impact Corruptions . | . . . . . . . Robots Melted . | . . . . . . . Combat Hostiles . | . . . . . . . Parts Melted 1 | . . . . . . 1 Heat Transferred 180 | . 100 . . . . 80 Parts Sabotaged . | . . . . . . . Parts Stolen . | . . . . . . . Parts Stripped . | . . . . . . . Power Chain Reactions . | . . . . . . . Alert | -11 -10 -9 -9 -9 -8 -8 ------- Run | Yrd Mat Mat Min Exi Min Mat Peak Influence 467 | . 283 467 336 . 5 128 Initial 161 | . . 118 161 . . 1 Average 163 | . 96 308 274 . . 46 Maximum Alert Level 2 | . 1 2 1 . . . Low Security (%) 67 | 100 96 26 13 . 100 100 Level 1 28 | . 3 56 86 . . . Level 2 4 | . . 16 . . . . Level 3 . | . . . . . . . Level 4 . | . . . . . . . Level 5 . | . . . . . . . High Security . | . . . . . . . Max Security . | . . . . . . . Squads Dispatched 5 | . 2 2 . . . 1 Investigation 4 | . 2 2 . . . . Extermination . | . . . . . . . Reinforcement 1 | . . . . . . 1 Assault . | . . . . . . . Garrison . | . . . . . . . Intercept . | . . . . . . . Searches Triggered . | . . . . . . . Construction Impeded . | . . . . . . . Haulers Reinforced . | . . . . . . . Active Scanning Responses . | . . . . . . . Cargo Convoy Interrupts . | . . . . . . . Stealth | -11 -10 -9 -9 -9 -8 -8 --------- Run | Yrd Mat Mat Min Exi Min Mat Distress Signals 4 | . 1 3 . . . . Communications Jammed . | . . . . . . . Distress Signals . | . . . . . . . Times Spotted 56 | . 20 23 10 . . 3 Peak Tracking Total 4 | . 4 4 4 . . 1 Tactical Retreats 4 | . 1 2 1 . . . Traps | -11 -10 -9 -9 -9 -8 -8 ------- Run | Yrd Mat Mat Min Exi Min Mat Traps Triggered 8 | . 6 2 . . . . Indirectly . | . . . . . . . Trap Hack Attempts . | . . . . . . . Triggered . | . . . . . . . Disarmed . | . . . . . . . Reprogrammed . | . . . . . . . Reused . | . . . . . . . Traps Extracted . | . . . . . . . Installed . | . . . . . . . Triggered . | . . . . . . . Machines | -11 -10 -9 -9 -9 -8 -8 ---------- Run | Yrd Mat Mat Min Exi Min Mat Machines Disabled 2 | . 2 . . . . . Max in Single Turn 2 | . 2 . . . . . Machines Repaired . | . . . . . . . Machines Dismantled . | . . . . . . . Machines Sabotaged . | . . . . . . . Overloaded Fab Kills . | . . . . . . . Hacking | -11 -10 -9 -9 -9 -8 -8 --------- Run | Yrd Mat Mat Min Exi Min Mat Machines Accessed 13 | . 8 3 . 2 . . Terminals 9 | . 6 3 . . . . Fabricators . | . . . . . . . Repair Stations . | . . . . . . . Recycling Units 2 | . 2 . . . . . Scanalyzers . | . . . . . . . Garrison Access . | . . . . . . . Total Hacks 35 | . 25 8 . 2 . . Successful 18 | . 9 7 . 2 . . Failed 17 | . 16 1 . . . . Catastrophic 2 | . 2 . . . . . Database Lockouts . | . . . . . . . Manual 34 | . 25 8 . 1 . . Terminals 28 | . 20 8 . . . . Fabricators . | . . . . . . . Repair Stations . | . . . . . . . Recycling Units 5 | . 5 . . . . . Scanalyzers . | . . . . . . . Garrison Access . | . . . . . . . Terminal Hacks 9 | . 2 5 . 2 . . Record 1 | . . . . 1 . . Robot Analysis 4 | . 1 3 . . . . Branch Access Points 1 | . . 1 . . . . Terminal Index 1 | . 1 . . . . . Alert Level 1 | . . 1 . . . . Derelict Proto ID Bank 1 | . . . . 1 . . Fabricator Hacks . | . . . . . . . Repair Station Hacks . | . . . . . . . Recycling Unit Hacks . | . . . . . . . Scanalyzer . | . . . . . . . Garrison Access Hacks . | . . . . . . . Unauthorized Hacks 9 | . 7 2 . . . . Terminals 7 | . 5 2 . . . . Assimilate 1 | . 1 . . . . . Botnet 6 | . 4 2 . . . . Fabricators . | . . . . . . . Repair Stations . | . . . . . . . Recycling Units 2 | . 2 . . . . . Tunnel 2 | . 2 . . . . . Scanalyzers . | . . . . . . . Garrison Access . | . . . . . . . Data Cores Recovered . | . . . . . . . Used . | . . . . . . . Hacking Detections 10 | . 8 2 . . . . Full Trace Events . | . . . . . . . Feedback Events . | . . . . . . . Feedback Blocked . | . . . . . . . Robot Schematics Acquired . | . . . . . . . Robots Built . | . . . . . . . Authchips . | . . . . . . . Time . | . . . . . . . Total Robot Build Rating . | . . . . . . . Part Schematics Acquired . | . . . . . . . Parts Built . | . . . . . . . Authchips . | . . . . . . . Time . | . . . . . . . Total Part Build Rating . | . . . . . . . Parts Repaired . | . . . . . . . Time . | . . . . . . . Parts Recycled . | . . . . . . . Recycled Matter . | . . . . . . . Retrieved Matter . | . . . . . . . Retrieved Components . | . . . . . . . Parts Scanalyzed . | . . . . . . . Part Schematics Acquired . | . . . . . . . Parts Damaged . | . . . . . . . Bothacking | -11 -10 -9 -9 -9 -8 -8 ------------ Run | Yrd Mat Mat Min Exi Min Mat Used RIF Installer . | . . . . . . . Robots Hacked . | . . . . . . . Non-combat . | . . . . . . . Combat . | . . . . . . . Robot Hacks Applied . | . . . . . . . Relay Couplers Released . | . . . . . . . Fabnet Peak Effective % . | . . . . . . . Robots Rewired . | . . . . . . . Allies Hacked . | . . . . . . . Hacks Repelled . | . . . . . . . Allies | -11 -10 -9 -9 -9 -8 -8 -------- Run | Yrd Mat Mat Min Exi Min Mat Total Allies 1 | . 1 . . . . . Largest Group 1 | . 1 . . . . . Highest-Rated Group 10 | . 10 . . . . . Highest-Rated Ally 10 | . 10 . . . . . Total Orders 2 | . . . . 2 . . EXPLORE 1 | . . . . 1 . . RETURN 1 | . . . . 1 . . Ally Attacks . | . . . . . . . Total Damage . | . . . . . . . Kills . | . . . . . . . Allies Corrupted . | . . . . . . . Allies Melted . | . . . . . . . Intel | -11 -10 -9 -9 -9 -8 -8 ------- Run | Yrd Mat Mat Min Exi Min Mat Robot Analysis Total 4 | . 1 3 . . . . Derelict Logs Recovered 2 | . . . 2 . . . Drone Launches 1 | . . . . 1 . . Drone Recoveries 1 | . . . . 1 . . Exploration | -11 -10 -9 -9 -9 -8 -8 ------------- Run | Yrd Mat Mat Min Exi Min Mat Turns Passed 3216 | 71 1099 758 341 502 244 201 Spaces Moved 1566 | 36 511 299 170 297 150 103 Core 12 | 12 . . . . . . Treads 1554 | 24 511 299 170 297 150 103 Legs . | . . . . . . . Wheels . | . . . . . . . Hover . | . . . . . . . Flight . | . . . . . . . Fastest Speed 50 | 50 160 160 160 160 160 160 Average Speed 161 | 169 160 164 160 160 160 160 Slowest Speed 250 | 250 240 240 160 160 160 160 Overloaded Moves . | . . . . . . . Propulsion Burnouts . | . . . . . . . Robots Hopped . | . . . . . . . Cave-ins Triggered . | . . . . . . . Exploration Rate (%) 43 | 4 83 35 42 91 40 10 Regions Visited 6 Branch Regions 3 Pre-discovered Areas 3 | . 2 . . 1 . . Known Exits Taken 2 | . . 1 . . 1 . Unknown Exits Taken 4 | 1 1 . 1 1 . . Scrap Searched 4 | . . . 3 . 1 . Spaces Dug 7 | . 7 . . . . . Terrain Destroyed 84 | . 49 . . . . 35 Melee . | . . . . . . . Projectile . | . . . . . . . AOE 84 | . 49 . . . . 35 Terrain Rammed . | . . . . . . . Walls Destroyed . | . . . . . . . Machines Disabled . | . . . . . . . Actions | -11 -10 -9 -9 -9 -8 -8 --------- Run | Yrd Mat Mat Min Exi Min Mat Total 1947 | 43 661 436 199 324 153 131 Wait 114 | . 59 33 2 19 . 1 Move 1560 | 35 510 298 169 296 149 103 Hop . | . . . . . . . Pick Up 40 | 2 11 15 1 2 1 8 Fast Attach 25 | 6 12 2 2 1 . 2 Attach 17 | . 1 9 2 . 1 4 Detach 4 | . 1 . . 1 . 2 Swap 5 | . 2 . . 2 . 1 Drop 18 | . 2 9 . 2 1 4 Fire 162 | . 63 69 23 . 1 6 Melee . | . . . . . . . Ram . | . . . . . . . Kick . | . . . . . . . Crush 1 | . . 1 . . . . Escape Stasis . | . . . . . . . Rewire 1 | . . . . 1 . . Trap . | . . . . . . . Miscellaneous . | . . . . . . . Route ------- -11/Scrapyard -10/Materials (discovered 4 exits: *Mat x3 / [*Min]) -9/Materials (discovered 2 exits: *Min x2) -9/Mines (discovered 2 exits: *Mat / *Exi) -9/Exiles (discovered 2 exits: [*Min x2]) -8/Mines (discovered 2 exits: *Mat x2) -8/Materials (discovered 1 exit: Fac) History --------- Turn | Location | Event 25 | -11/Scrapyard | Discovered new exit (range 15) 72 | -11/Scrapyard | Entered Materials 283 | -10/Materials | Discovered new exit (range 14) 333 | -10/Materials | Build established: Mutant 421 | -10/Materials | Discovered new exit (range 13) 608 | -10/Materials | Discovered new exit (range 4) 929 | -10/Materials | Discovered new exit (range 14) 1132 | -10/Materials | Core integrity fell below 50% 1171 | -10/Materials | Entered another Materials area 1171 | -9/Materials | Evolved 2 slots: Utility x2 1228 | -9/Materials | Identified exit to Mines 1785 | -9/Materials | Build established: Scavenger-Mutant 1929 | -9/Materials | Entered Mines 1942 | -9/Mines | Discovered new exit (range 5) 1949 | -9/Mines | Met a Derelict bent on vengeance 1974 | -9/Mines | Core integrity fell below 50% 2235 | -9/Mines | Learned Materials interactive machine intel 2263 | -9/Mines | Deemed a non-threat by the Exiles lab entrance 2263 | -9/Mines | Discovered new exit (range 5) 2270 | -9/Mines | Entered Exiles 2294 | -9/Exiles | Discovered new exit (range 15) 2314 | -9/Exiles | Met 8R-AWN 2338 | -9/Exiles | Met EX-HEX 2398 | -9/Exiles | Met EX-DEC 2408 | -9/Exiles | Learned location of Zion (-6) 2446 | -9/Exiles | Met EX-BIN 2469 | -9/Exiles | Aligned with FarCom system 2470 | -9/Exiles | Given EX-Vault access code 2507 | -9/Exiles | Opened EX-Vault 2517 | -9/Exiles | Found Supersonic Drone Bay 2530 | -9/Exiles | Discovered new exit (range 59) 2545 | -9/Exiles | Found YOLO Cannon 2578 | -9/Exiles | Warned to stay clear of 0b10 Research branches 2772 | -9/Exiles | Left Exiles lab with YOLO Cannon 2772 | -9/Exiles | Entered Mines 2893 | -8/Mines | Discovered new exit (range 7) 2909 | -8/Mines | Identified exit to Materials 2984 | -8/Mines | Discovered exit to Materials (range 4) 3016 | -8/Mines | Entered Materials 3016 | -8/Materials | Evolved 2 slots: Propulsion x1, Utility x1 3017 | -8/Materials | Identified exit to Factory 3018 | -8/Materials | Loaded intel: 17 interactive machine locations 3217 | -8/Materials | Self-destructed Last Messages --------------- 03138_ Visual Processing Unit melted. 03138_ H-61 Shepherd destroyed. 03142_ Dropped Lgt. Assault Rifle. 03145_ X-57 Shotgunner destroyed. 03148_ R-06 Scavenger destroyed. 03149_ The unstable cave ceiling collapses. 03149_ Tractor Beam crushed. 03155_ X-57 Shotgunner destroyed. 03170_ Acquired Rnf. Deuterium Engine. 03171_ Acquired 46 matter. 03174_ Acquired Arm. Treads. 03179_ R-06 Scavenger collects VSS Leg. 03184_ U-05 Engineer lays Concrete. 03194_ Dropped Arm. Treads. 03194_ Acquired Arm. Treads. 03196_ Dropped Lgt. Treads. 03198_ Acquired Arm. Treads. 03202_ Acquired 54 matter. 03215_ U-05 Engineer lays Concrete. 03217_ K-01 Serf collects debris. Map ----- +----------------------------------------------------+ | ??????????????????????????????????? | | ??????????????????????????????????? | | ??????????????????????????????????? | | ?????????????????????#####????????? | | ?????????????????????# #????????? | | ?????????????????????# #????????? | | ?????????????????????# #????????? | | ?????????????????????# #????????? | | ?????????????????????# #????????? | | ?????????????????????# #????????? | | ???????????????####### #????????? | | ???????????????# # ########## | | ???????????????# # # # | | ???????????????# """ # # """ # | | ???????????????# """ # # """ # | | ???????????????# """ # # """ # | | ???????????????# + + [ # | | ?????????Y?????# """ # w# # | | ???????????????# """ ### # # | | ???????????????# """ #?# #/ # | | ???????????????# #?# #/ # | | ???????????????# #?# ########## | | ???????????????# ### ### %# | | ???????????????## % # # | | ??????????####+# # # = # | | ??????? k %% % @ ; # | | ?????????????#/## [ # # | | ???????????# # # # | | ???????????# ##### ######### | | ???????????# ????#??# #???????? | | ?????????????????????## ##??????? | | ????????????????????##; ;##?????? | | ????????????????????# # ; #?????? | | ????????????????????# #u ; #?????? | | ????????????????????#"# !;"#?????? | | ????????????????????# #?????? | | ?????????????????? #?????? | | ??????????????? = #?????? | | ????????????? +?????? | | ???????????# #?????? | | ???????????+ #??""?? | | ???????????########## #?S""?? | | ????????????????????## ##?""??? | | ?????????????????????# #??????? | | ?????????????????????# #??????? | | ?????????????????????# #??????? | | ????????????????????? #??????? | | ????????????????????? #??????? | | ????????????????????? #??????? | | ????????????????????? ???????? | +----------------------------------------------------+ Best States ------------- Heat Dissipation 45 Energy Generation 14 Energy Capacity 280 Matter Stores 300 Matter Capacity 300 Sight Range 16 Robot Scan Range 14 Terrain Scan Density 10 Armor Coverage 225 Evasion (%) 40 Recoil Reduction 3 Offensive Hacking 10 Item Schematics ----------------- None Robot Schematics ------------------ None Fabricated ------------ Nothing Alien Tech Used ----------------- None Achievements -------------- None Challenges ------------ None Game ------ Seed PointTeleporterClaymores Manual? 0 Play Time 00:26:37 Cumulative 68.6 hours Start 2025.01.17 @ 09:21:51 End 2025.01.17 @ 10:16:38 Sessions 1 Manual Loads 0 Difficulty Rogue Special Mode None Game No. 51 Rogue 35 Adventurer 16 Explorer 0 Win Type - Total 1 Types 1/0/0/0/0/0/0/0/0 Lore% 34 Gallery% 38 Achievement% 38 Wizard Run 0 Options --------- Layout 1 ASCII 0 Keyboard 0 Movement Arrows Keybinds 0 Fullscreen 1 Font 24/Smallcaps Map View 50x35 Zoom Use 0% Tactical HUD 1 Map Filters NONE Filters NONE Steam 1 RUN: f809932c-b391-46c8-87cf-e7144309587f